[Event "Titled Tuesday Blitz July 25 Early 2023"]
[White "Martinez Alcantara, Jose Eduardo"]
[Black "Bok, Benjamin"]
[WhiteFideId "3805662"]
[BlackFideId "1017063"]
[WhiteElo "2992"]
[BlackElo "2967"]
[Result "1-0"]
[Round "9"]
[TimeControl "180+2"]
[Date "2023.07.25"]
[WhiteClock "0:00:06"]
[BlackClock "0:00:03"]
[Board "8"]

1. e4 {[%clk 0:03:00]}  c5 {[%clk 0:02:58]} 2. Nf3 {[%clk 0:03:01]}  d6 {[%clk 0:02:58]} 3. c3 {[%clk 0:03:01]}  Nf6 {[%clk 0:02:58]} 4. h3 {[%clk 0:03:02]}  g6 {[%clk 0:02:56]} 5. Bd3 {[%clk 0:03:02]}  Bg7 {[%clk 0:02:55]} 6. Bc2 {[%clk 0:03:03]}  e5 {[%clk 0:02:54]} 7. d4 {[%clk 0:03:03]}  exd4 {[%clk 0:02:54]} 8. cxd4 {[%clk 0:03:04]}  cxd4 {[%clk 0:02:55]} 9. Nxd4 {[%clk 0:03:05]}  O-O {[%clk 0:02:55]} 10. O-O {[%clk 0:03:06]}  Nc6 {[%clk 0:02:55]} 11. Nxc6 {[%clk 0:03:06]}  bxc6 {[%clk 0:02:56]} 12. Nc3 {[%clk 0:03:07]}  d5 {[%clk 0:02:56]} 13. Bg5 {[%clk 0:03:02]}  h6 {[%clk 0:02:52]} 14. Be3 {[%clk 0:03:02]}  Be6 {[%clk 0:02:49]} 15. Qf3 {[%clk 0:02:46]}  d4 {[%clk 0:02:15]} 16. Rfd1 {[%clk 0:02:45]}  c5 {[%clk 0:02:14]} 17. Bf4 {[%clk 0:02:43]}  Qb6 {[%clk 0:01:59]} 18. Na4 {[%clk 0:02:36]}  Qb5 {[%clk 0:01:44]} 19. b3 {[%clk 0:02:05]}  Nd7 {[%clk 0:01:34]} 20. Rab1 {[%clk 0:01:40]}  c4 {[%clk 0:01:25]} 21. bxc4 {[%clk 0:01:37]}  Qxc4 {[%clk 0:01:26]} 22. Bb3 {[%clk 0:01:36]}  Qa6 {[%clk 0:01:26]} 23. Qg3 {[%clk 0:01:29]}  Rac8 {[%clk 0:01:19]} 24. h4 {[%clk 0:00:51]}  Bxb3 {[%clk 0:01:09]} 25. axb3 {[%clk 0:00:52]}  Rfe8 {[%clk 0:01:09]} 26. Qf3 {[%clk 0:00:48]}  Qb7 {[%clk 0:00:52]} 27. Re1 {[%clk 0:00:42]}  h5 {[%clk 0:00:47]} 28. g3 {[%clk 0:00:42]}  Nf6 {[%clk 0:00:43]} 29. Kg2 {[%clk 0:00:36]}  Nxe4 {[%clk 0:00:38]} 30. Rbc1 {[%clk 0:00:31]}  Rxc1 {[%clk 0:00:35]} 31. Rxc1 {[%clk 0:00:32]}  d3 {[%clk 0:00:17]} 32. Nc5 {[%clk 0:00:30]}  Nxc5 {[%clk 0:00:12]} 33. Rxc5 {[%clk 0:00:31]}  Qxb3 {[%clk 0:00:10]} 34. Rd5 {[%clk 0:00:29]}  a5 {[%clk 0:00:05]} 35. Rxd3 {[%clk 0:00:29]}  Qc4 {[%clk 0:00:05]} 36. Rd7 {[%clk 0:00:25]}  a4 {[%clk 0:00:05]} 37. Rc7 {[%clk 0:00:26]}  Qb3 {[%clk 0:00:03]} 38. Ra7 {[%clk 0:00:21]}  Qe6 {[%clk 0:00:02]} 39. Rxa4 {[%clk 0:00:20]}  Rd8 {[%clk 0:00:02]} 40. Re4 {[%clk 0:00:20]}  Qd7 {[%clk 0:00:02]} 41. Bg5 {[%clk 0:00:20]}  Re8 {[%clk 0:00:02]} 42. Rc4 {[%clk 0:00:17]}  Qe6 {[%clk 0:00:02]} 43. Rb4 {[%clk 0:00:15]}  Qd6 {[%clk 0:00:02]} 44. Rb7 {[%clk 0:00:15]}  Qe6 {[%clk 0:00:03]} 45. Kh2 {[%clk 0:00:15]}  Qc4 {[%clk 0:00:02]} 46. Be3 {[%clk 0:00:12]}  Qe6 {[%clk 0:00:02]} 47. Rc7 {[%clk 0:00:13]}  Be5 {[%clk 0:00:02]} 48. Rb7 {[%clk 0:00:11]}  Bg7 {[%clk 0:00:02]} 49. Kg1 {[%clk 0:00:12]}  Be5 {[%clk 0:00:02]} 50. Rb6 {[%clk 0:00:10]}  Qg4 {[%clk 0:00:01]} 51. Qxg4 {[%clk 0:00:07]}  hxg4 {[%clk 0:00:02]} 52. Kg2 {[%clk 0:00:07]}  Kg7 {[%clk 0:00:03]} 53. Rb7 {[%clk 0:00:07]}  Kg8 {[%clk 0:00:03]} 54. Bg5 {[%clk 0:00:05]}  Bg7 {[%clk 0:00:02]} 55. Rb4 {[%clk 0:00:05]}  f5 {[%clk 0:00:02]} 56. Rb5 {[%clk 0:00:06]}  Kf7 {[%clk 0:00:02]} 57. Bf4 {[%clk 0:00:04]}  Bf6 {[%clk 0:00:02]} 58. h5 {[%clk 0:00:04]}  gxh5 {[%clk 0:00:03]} 59. Rxf5 {[%clk 0:00:04]}  Kg6 {[%clk 0:00:03]} 60. Ra5 {[%clk 0:00:05]}  Bd4 {[%clk 0:00:03]} 61. Ra6+ {[%clk 0:00:05]}  Kf5 {[%clk 0:00:03]} 62. Ra4 {[%clk 0:00:06]}  Bf6 {[%clk 0:00:03]} 63. Ra5+ {[%clk 0:00:06]}  Kg6 {[%clk 0:00:03]} 64. Ra6 {[%clk 0:00:07]}  Kf5 {[%clk 0:00:03]} 65. Be3 {[%clk 0:00:08]}  Re6 {[%clk 0:00:03]} 66. Ra5+ {[%clk 0:00:08]}  Re5 {[%clk 0:00:03]} 67. Ra8 {[%clk 0:00:09]}  Re6 {[%clk 0:00:03]} 68. Rf8 {[%clk 0:00:10]}  Kg6 {[%clk 0:00:03]} 69. Rc8 {[%clk 0:00:10]}  h4 {[%clk 0:00:03]} 70. Rg8+ {[%clk 0:00:07]}  Kf5 {[%clk 0:00:03]} 71. gxh4 {[%clk 0:00:03]}  Bxh4 {[%clk 0:00:04]} 72. Rf8+ {[%clk 0:00:03]}  Kg6 {[%clk 0:00:03]} 73. Rf4 {[%clk 0:00:03]}  Kh5 {[%clk 0:00:04]} 74. Rd4 {[%clk 0:00:04]}  Bf6 {[%clk 0:00:03]} 75. Rd5+ {[%clk 0:00:03]}  Kg6 {[%clk 0:00:03]} 76. Kg3 {[%clk 0:00:03]}  Re4 {[%clk 0:00:03]} 77. Bf4 {[%clk 0:00:03]}  Rc4 {[%clk 0:00:03]} 78. Kxg4 {[%clk 0:00:02]}  Bg7 {[%clk 0:00:03]} 79. Kf3 {[%clk 0:00:02]}  Rc3+ {[%clk 0:00:03]} 80. Be3 {[%clk 0:00:03]}  Bh6 {[%clk 0:00:03]} 81. Rd6+ {[%clk 0:00:04]}  Kg7 {[%clk 0:00:03]} 82. Rxh6 {[%clk 0:00:04]}  Rxe3+ {[%clk 0:00:03]} 83. Kxe3 {[%clk 0:00:05]}  Kxh6 {[%clk 0:00:04]} 84. Ke4 {[%clk 0:00:05]}  Kg5 {[%clk 0:00:04]} 85. Ke5 {[%clk 0:00:05]}  Kg4 {[%clk 0:00:03]} 86. f4 {[%clk 0:00:06]} 1-0


[Site "https://www.chess.com"]

[Event "Titled Tuesday Blitz July 25 Early 2023"]
[White "Cordova, Emilio"]
[Black "Leon Oquendo, Jorge"]
[WhiteFideId "3801497"]
[BlackFideId "3514803"]
[WhiteElo "2856"]
[BlackElo "2741"]
[Result "1-0"]
[Round "9"]
[TimeControl "180+2"]
[Date "2023.07.25"]
[WhiteClock "0:01:03"]
[BlackClock "0:00:00"]
[Board "10"]

1. Nf3 {[%clk 0:03:00]}  d5 {[%clk 0:02:58]} 2. e3 {[%clk 0:03:01]}  Nf6 {[%clk 0:02:57]} 3. c4 {[%clk 0:03:02]}  e6 {[%clk 0:02:55]} 4. Nc3 {[%clk 0:03:02]}  Be7 {[%clk 0:02:55]} 5. b3 {[%clk 0:03:01]}  O-O {[%clk 0:02:55]} 6. Bb2 {[%clk 0:03:02]}  c5 {[%clk 0:02:46]} 7. cxd5 {[%clk 0:03:01]}  Nxd5 {[%clk 0:02:45]} 8. Nxd5 {[%clk 0:02:57]}  exd5 {[%clk 0:02:42]} 9. Rc1 {[%clk 0:02:57]}  Nc6 {[%clk 0:02:40]} 10. Bb5 {[%clk 0:02:55]}  Bd7 {[%clk 0:02:35]} 11. O-O {[%clk 0:02:51]}  a6 {[%clk 0:02:30]} 12. Be2 {[%clk 0:02:50]}  Rc8 {[%clk 0:01:56]} 13. a3 {[%clk 0:02:46]}  Qb6 {[%clk 0:01:52]} 14. Ba1 {[%clk 0:02:41]}  Qa5 {[%clk 0:01:50]} 15. Bc3 {[%clk 0:02:37]}  Qb6 {[%clk 0:01:43]} 16. Ba1 {[%clk 0:02:23]}  Be6 {[%clk 0:01:40]} 17. Qc2 {[%clk 0:02:12]}  d4 {[%clk 0:01:31]} 18. Bc4 {[%clk 0:02:11]}  Bxc4 {[%clk 0:01:29]} 19. bxc4 {[%clk 0:02:10]}  Bf6 {[%clk 0:01:25]} 20. e4 {[%clk 0:02:09]}  Qc7 {[%clk 0:01:20]} 21. Rb1 {[%clk 0:02:08]}  Rb8 {[%clk 0:01:17]} 22. d3 {[%clk 0:02:04]}  g6 {[%clk 0:01:15]} 23. Bb2 {[%clk 0:01:59]}  Rfc8 {[%clk 0:01:14]} 24. Bc1 {[%clk 0:01:59]}  Be7 {[%clk 0:01:06]} 25. Bd2 {[%clk 0:01:58]}  b5 {[%clk 0:01:03]} 26. g3 {[%clk 0:01:54]}  Qd7 {[%clk 0:01:00]} 27. Kg2 {[%clk 0:01:53]}  Qe6 {[%clk 0:01:00]} 28. Bf4 {[%clk 0:01:48]}  Bd6 {[%clk 0:00:57]} 29. Bxd6 {[%clk 0:01:46]}  Qxd6 {[%clk 0:00:58]} 30. cxb5 {[%clk 0:01:41]}  axb5 {[%clk 0:00:56]} 31. Rfc1 {[%clk 0:01:40]}  Ne5 {[%clk 0:00:47]} 32. Nxe5 {[%clk 0:01:40]}  Qxe5 {[%clk 0:00:47]} 33. a4 {[%clk 0:01:40]}  c4 {[%clk 0:00:43]} 34. Rxb5 {[%clk 0:01:38]}  Rxb5 {[%clk 0:00:39]} 35. axb5 {[%clk 0:01:39]}  c3 {[%clk 0:00:40]} 36. Qb3 {[%clk 0:01:35]}  Rb8 {[%clk 0:00:38]} 37. b6 {[%clk 0:01:31]}  Rb7 {[%clk 0:00:33]} 38. Qb4 {[%clk 0:01:21]}  Qf6 {[%clk 0:00:18]} 39. Rb1 {[%clk 0:01:18]}  h5 {[%clk 0:00:18]} 40. h4 {[%clk 0:01:18]}  Kg7 {[%clk 0:00:10]} 41. Qc5 {[%clk 0:01:17]}  Kh7 {[%clk 0:00:09]} 42. Rb4 {[%clk 0:01:16]}  Qe6 {[%clk 0:00:03]} 43. Rxd4 {[%clk 0:01:14]}  Rxb6 {[%clk 0:00:03]} 44. Rc4 {[%clk 0:01:14]}  Rd6 {[%clk 0:00:02]} 45. Rxc3 {[%clk 0:01:14]}  Rd7 {[%clk 0:00:03]} 46. Qe3 {[%clk 0:01:10]}  Rd8 {[%clk 0:00:02]} 47. Rc7 {[%clk 0:01:07]}  Kg8 {[%clk 0:00:01]} 48. d4 {[%clk 0:01:06]}  Rf8 {[%clk 0:00:02]} 49. d5 {[%clk 0:01:06]}  Qa6 {[%clk 0:00:02]} 50. Qf4 {[%clk 0:01:04]}  Qb6 {[%clk 0:00:02]} 51. d6 {[%clk 0:01:04]}  Qa5 {[%clk 0:00:02]} 52. e5 {[%clk 0:01:04]}  Re8 {[%clk 0:00:00]} 53. Qxf7+ {[%clk 0:01:03]} 1-0


[Site "https://www.chess.com"]

[Event "Titled Tuesday Blitz July 25 Early 2023"]
[White "Sarana, Alexey"]
[Black "Ilamparthi A R"]
[WhiteFideId "24133795"]
[BlackFideId "45015775"]
[WhiteElo "3048"]
[BlackElo "2853"]
[Result "1-0"]
[Round "9"]
[TimeControl "180+2"]
[Date "2023.07.25"]
[WhiteClock "0:01:27"]
[BlackClock "0:00:32"]
[Board "11"]

1. d4 {[%clk 0:03:00]}  Nf6 {[%clk 0:02:59]} 2. c4 {[%clk 0:03:01]}  g6 {[%clk 0:03:00]} 3. Nc3 {[%clk 0:03:02]}  Bg7 {[%clk 0:03:01]} 4. e4 {[%clk 0:03:02]}  d6 {[%clk 0:03:01]} 5. Bd3 {[%clk 0:03:03]}  O-O {[%clk 0:03:00]} 6. Nge2 {[%clk 0:03:03]}  Nc6 {[%clk 0:02:59]} 7. O-O {[%clk 0:03:02]}  e5 {[%clk 0:02:57]} 8. d5 {[%clk 0:03:02]}  Ne7 {[%clk 0:02:56]} 9. f3 {[%clk 0:03:01]}  Nh5 {[%clk 0:02:56]} 10. g4 {[%clk 0:03:02]}  Nf4 {[%clk 0:02:55]} 11. Nxf4 {[%clk 0:03:02]}  exf4 {[%clk 0:02:56]} 12. Bxf4 {[%clk 0:03:02]}  f5 {[%clk 0:02:56]} 13. exf5 {[%clk 0:02:54]}  gxf5 {[%clk 0:02:56]} 14. Bg5 {[%clk 0:02:55]}  Bd7 {[%clk 0:02:40]} 15. Qe2 {[%clk 0:02:46]}  Bf6 {[%clk 0:02:30]} 16. Bxf6 {[%clk 0:02:45]}  Rxf6 {[%clk 0:02:30]} 17. g5 {[%clk 0:02:46]}  Rf7 {[%clk 0:02:31]} 18. f4 {[%clk 0:02:46]}  Ng6 {[%clk 0:02:30]} 19. Qf2 {[%clk 0:02:44]}  Qf8 {[%clk 0:02:22]} 20. h4 {[%clk 0:02:43]}  h6 {[%clk 0:02:12]} 21. h5 {[%clk 0:02:41]}  Nxf4 {[%clk 0:02:10]} 22. Qxf4 {[%clk 0:02:41]}  hxg5 {[%clk 0:02:11]} 23. Qd4 {[%clk 0:02:24]}  Qh6 {[%clk 0:02:07]} 24. Rf2 {[%clk 0:02:24]}  Re8 {[%clk 0:01:34]} 25. Raf1 {[%clk 0:02:23]}  f4 {[%clk 0:01:33]} 26. Bg6 {[%clk 0:02:19]}  Bh3 {[%clk 0:01:27]} 27. Ne4 {[%clk 0:02:04]}  Ref8 {[%clk 0:01:13]} 28. Re1 {[%clk 0:01:58]}  g4 {[%clk 0:01:13]} 29. Bxf7+ {[%clk 0:01:36]}  Rxf7 {[%clk 0:01:12]} 30. Ng3 {[%clk 0:01:36]}  Rf8 {[%clk 0:00:48]} 31. Re6 {[%clk 0:01:27]}  fxg3 {[%clk 0:00:32]} 32. Rg6+ {[%clk 0:01:27]} 1-0


[Site "https://www.chess.com"]

[Event "Titled Tuesday Blitz July 25 Early 2023"]
[White "Bortnyk, Olexandr"]
[Black "Ashraf, Artin"]
[WhiteFideId "14120828"]
[BlackFideId "22514805"]
[WhiteElo "3041"]
[BlackElo "2815"]
[Result "0-1"]
[Round "9"]
[TimeControl "180+2"]
[Date "2023.07.25"]
[WhiteClock "0:00:00"]
[BlackClock "0:00:03"]
[Board "12"]

1. e4 {[%clk 0:03:00]}  c5 {[%clk 0:02:59]} 2. c3 {[%clk 0:03:00]}  Nf6 {[%clk 0:02:52]} 3. e5 {[%clk 0:03:00]}  Nd5 {[%clk 0:02:52]} 4. d4 {[%clk 0:03:01]}  cxd4 {[%clk 0:02:53]} 5. Nf3 {[%clk 0:03:02]}  d6 {[%clk 0:02:51]} 6. cxd4 {[%clk 0:03:03]}  Nc6 {[%clk 0:02:50]} 7. Bc4 {[%clk 0:03:04]}  Nb6 {[%clk 0:02:49]} 8. Bb5 {[%clk 0:03:04]}  dxe5 {[%clk 0:02:49]} 9. Nxe5 {[%clk 0:03:05]}  Bd7 {[%clk 0:02:49]} 10. Nxd7 {[%clk 0:03:05]}  Qxd7 {[%clk 0:02:50]} 11. Nc3 {[%clk 0:03:04]}  e6 {[%clk 0:02:50]} 12. O-O {[%clk 0:03:03]}  Be7 {[%clk 0:02:50]} 13. Qg4 {[%clk 0:03:03]}  O-O {[%clk 0:02:48]} 14. Rd1 {[%clk 0:03:02]}  Rfd8 {[%clk 0:02:45]} 15. Bxc6 {[%clk 0:03:00]}  Qxc6 {[%clk 0:02:43]} 16. Bh6 {[%clk 0:02:59]}  Bf8 {[%clk 0:02:40]} 17. Rac1 {[%clk 0:02:56]}  Rac8 {[%clk 0:02:36]} 18. Bg5 {[%clk 0:02:43]}  Re8 {[%clk 0:01:49]} 19. Ne4 {[%clk 0:02:36]}  f5 {[%clk 0:01:48]} 20. Rxc6 {[%clk 0:02:35]}  fxg4 {[%clk 0:01:48]} 21. Rxc8 {[%clk 0:02:30]}  Rxc8 {[%clk 0:01:49]} 22. Rc1 {[%clk 0:02:29]}  Rxc1+ {[%clk 0:01:19]} 23. Bxc1 {[%clk 0:02:30]}  Nd5 {[%clk 0:01:20]} 24. Kf1 {[%clk 0:02:30]}  h6 {[%clk 0:01:14]} 25. Ke2 {[%clk 0:02:30]}  Kf7 {[%clk 0:01:14]} 26. a3 {[%clk 0:02:26]}  b6 {[%clk 0:01:08]} 27. Kd3 {[%clk 0:02:24]}  Ke8 {[%clk 0:01:08]} 28. Nc3 {[%clk 0:02:10]}  Bd6 {[%clk 0:00:59]} 29. g3 {[%clk 0:01:59]}  Kd7 {[%clk 0:00:58]} 30. Ne4 {[%clk 0:01:52]}  Bc7 {[%clk 0:00:51]} 31. Bd2 {[%clk 0:01:52]}  Kc6 {[%clk 0:00:46]} 32. a4 {[%clk 0:01:52]}  Bd6 {[%clk 0:00:40]} 33. Kc4 {[%clk 0:01:51]}  a6 {[%clk 0:00:37]} 34. Nxd6 {[%clk 0:01:41]}  Kxd6 {[%clk 0:00:37]} 35. b4 {[%clk 0:01:42]}  b5+ {[%clk 0:00:29]} 36. axb5 {[%clk 0:01:39]}  Nb6+ {[%clk 0:00:29]} 37. Kd3 {[%clk 0:01:38]}  axb5 {[%clk 0:00:30]} 38. Bf4+ {[%clk 0:01:29]}  Kd5 {[%clk 0:00:28]} 39. Bc7 {[%clk 0:01:00]}  Nd7 {[%clk 0:00:23]} 40. Bd8 {[%clk 0:01:00]}  Nf6 {[%clk 0:00:19]} 41. Be7 {[%clk 0:00:56]}  Ne4 {[%clk 0:00:17]} 42. Ke3 {[%clk 0:00:47]}  g5 {[%clk 0:00:17]} 43. Bf8 {[%clk 0:00:36]}  h5 {[%clk 0:00:15]} 44. Be7 {[%clk 0:00:33]}  e5 {[%clk 0:00:13]} 45. dxe5 {[%clk 0:00:34]}  Kxe5 {[%clk 0:00:14]} 46. Bd8 {[%clk 0:00:32]}  Kf5 {[%clk 0:00:14]} 47. Bc7 {[%clk 0:00:21]}  h4 {[%clk 0:00:09]} 48. Bd8 {[%clk 0:00:04]}  h3 {[%clk 0:00:08]} 49. Bc7 {[%clk 0:00:05]}  Nc3 {[%clk 0:00:08]} 50. Bd6 {[%clk 0:00:03]}  Nd1+ {[%clk 0:00:07]} 51. Ke2 {[%clk 0:00:03]}  Nc3+ {[%clk 0:00:07]} 52. Ke3 {[%clk 0:00:03]}  Ne4 {[%clk 0:00:07]} 53. Be7 {[%clk 0:00:03]}  Ke5 {[%clk 0:00:06]} 54. Bd8 {[%clk 0:00:03]}  Kf5 {[%clk 0:00:04]} 55. Bb6 {[%clk 0:00:03]}  Nc3 {[%clk 0:00:03]} 56. Kd4 {[%clk 0:00:03]}  Ne2+ {[%clk 0:00:03]} 57. Kc5 {[%clk 0:00:03]}  Ng1 {[%clk 0:00:03]} 58. Kxb5 {[%clk 0:00:02]}  Nf3 {[%clk 0:00:04]} 59. Be3 {[%clk 0:00:01]}  Nxh2 {[%clk 0:00:04]} 60. Kc6 {[%clk 0:00:01]}  Nf3 {[%clk 0:00:04]} 61. b5 {[%clk 0:00:02]}  h2 {[%clk 0:00:05]} 62. b6 {[%clk 0:00:03]}  h1=Q {[%clk 0:00:06]} 63. b7 {[%clk 0:00:03]}  Ne5+ {[%clk 0:00:05]} 64. Kc7 {[%clk 0:00:03]}  Qh7+ {[%clk 0:00:05]} 65. Kb6 {[%clk 0:00:03]}  Nd7+ {[%clk 0:00:03]} 66. Ka7 {[%clk 0:00:03]}  Qf7 {[%clk 0:00:03]} 67. Ka6 {[%clk 0:00:02]}  Qc4+ {[%clk 0:00:02]} 68. Ka5 {[%clk 0:00:03]}  Qd5+ {[%clk 0:00:03]} 69. Ka6 {[%clk 0:00:04]}  Qc6+ {[%clk 0:00:03]} 70. Ka5 {[%clk 0:00:00]}  Qxb7 {[%clk 0:00:03]} 0-1


[Site "https://www.chess.com"]

[Event "Titled Tuesday Blitz July 25 Early 2023"]
[White "Shimanov, Aleksandr"]
[Black "Zubritskiy, Artyom"]
[WhiteFideId "4198603"]
[BlackFideId "4181247"]
[WhiteElo "3002"]
[BlackElo "2791"]
[Result "0-1"]
[Round "9"]
[TimeControl "180+2"]
[Date "2023.07.25"]
[WhiteClock "0:00:00"]
[BlackClock "0:00:57"]
[Board "14"]

1. b3 {[%clk 0:03:00]}  c5 {[%clk 0:02:59]} 2. e4 {[%clk 0:02:59]}  Nc6 {[%clk 0:02:53]} 3. Bb2 {[%clk 0:02:57]}  e5 {[%clk 0:02:53]} 4. Bb5 {[%clk 0:02:45]}  Nge7 {[%clk 0:02:51]} 5. Nf3 {[%clk 0:02:41]}  d6 {[%clk 0:02:49]} 6. Bc4 {[%clk 0:02:34]}  h6 {[%clk 0:02:45]} 7. O-O {[%clk 0:02:30]}  g5 {[%clk 0:02:41]} 8. d4 {[%clk 0:02:21]}  cxd4 {[%clk 0:02:16]} 9. c3 {[%clk 0:02:21]}  Bg7 {[%clk 0:02:17]} 10. cxd4 {[%clk 0:02:21]}  g4 {[%clk 0:02:02]} 11. Nh4 {[%clk 0:02:15]}  Nxd4 {[%clk 0:01:54]} 12. Bxd4 {[%clk 0:02:01]}  exd4 {[%clk 0:01:55]} 13. Bb5+ {[%clk 0:02:01]}  Kf8 {[%clk 0:01:52]} 14. Nd2 {[%clk 0:01:57]}  Bf6 {[%clk 0:01:47]} 15. Nf5 {[%clk 0:01:06]}  Nxf5 {[%clk 0:01:32]} 16. exf5 {[%clk 0:01:07]}  h5 {[%clk 0:01:17]} 17. Bd3 {[%clk 0:01:05]}  d5 {[%clk 0:01:17]} 18. f3 {[%clk 0:00:59]}  Qd6 {[%clk 0:01:13]} 19. fxg4 {[%clk 0:00:38]}  hxg4 {[%clk 0:01:13]} 20. g3 {[%clk 0:00:39]}  Bg5 {[%clk 0:00:57]} 21. Qf3 {[%clk 0:00:00]}  gxf3 {[%clk 0:00:57]} 0-1


[Site "https://www.chess.com"]

[Event "Titled Tuesday Blitz July 25 Early 2023"]
[White "Bauman_Guy"]
[Black "Pranav, V"]
[BlackFideId "25060783"]
[WhiteElo "2777"]
[BlackElo "2999"]
[Result "1-0"]
[Round "9"]
[TimeControl "180+2"]
[Date "2023.07.25"]
[WhiteClock "0:00:55"]
[BlackClock "0:00:03"]
[Board "15"]

1. e4 {[%clk 0:02:43]}  e5 {[%clk 0:02:59]} 2. Nf3 {[%clk 0:02:43]}  Nc6 {[%clk 0:03:00]} 3. Bb5 {[%clk 0:02:44]}  a6 {[%clk 0:03:00]} 4. Ba4 {[%clk 0:02:44]}  Nf6 {[%clk 0:03:01]} 5. O-O {[%clk 0:02:45]}  Be7 {[%clk 0:03:01]} 6. Re1 {[%clk 0:02:45]}  b5 {[%clk 0:03:01]} 7. Bb3 {[%clk 0:02:46]}  d6 {[%clk 0:03:01]} 8. c3 {[%clk 0:02:46]}  O-O {[%clk 0:03:01]} 9. h3 {[%clk 0:02:46]}  Nb8 {[%clk 0:03:02]} 10. d4 {[%clk 0:02:40]}  Nbd7 {[%clk 0:03:02]} 11. Nbd2 {[%clk 0:02:35]}  Bb7 {[%clk 0:03:01]} 12. Bc2 {[%clk 0:02:36]}  Re8 {[%clk 0:03:00]} 13. Nf1 {[%clk 0:02:36]}  Bf8 {[%clk 0:03:01]} 14. Ng3 {[%clk 0:02:36]}  g6 {[%clk 0:03:01]} 15. Bd2 {[%clk 0:02:36]}  c6 {[%clk 0:02:55]} 16. a4 {[%clk 0:02:34]}  Qc7 {[%clk 0:02:52]} 17. Qc1 {[%clk 0:02:34]}  Rad8 {[%clk 0:02:51]} 18. Bh6 {[%clk 0:02:33]}  Kh8 {[%clk 0:02:14]} 19. Bb3 {[%clk 0:02:29]}  Re7 {[%clk 0:02:03]} 20. Qg5 {[%clk 0:02:27]}  Bxh6 {[%clk 0:02:00]} 21. Qxh6 {[%clk 0:02:27]}  Ng8 {[%clk 0:01:59]} 22. Qh4 {[%clk 0:02:26]}  f6 {[%clk 0:01:51]} 23. axb5 {[%clk 0:02:26]}  cxb5 {[%clk 0:01:50]} 24. dxe5 {[%clk 0:02:16]}  dxe5 {[%clk 0:01:48]} 25. Red1 {[%clk 0:02:16]}  Rf8 {[%clk 0:01:46]} 26. Bd5 {[%clk 0:02:04]}  Nc5 {[%clk 0:01:44]} 27. Nf1 {[%clk 0:02:04]}  g5 {[%clk 0:01:08]} 28. Qg4 {[%clk 0:02:03]}  Kg7 {[%clk 0:00:54]} 29. Ne3 {[%clk 0:01:53]}  Nh6 {[%clk 0:00:53]} 30. Qh5 {[%clk 0:01:54]}  Nxe4 {[%clk 0:00:47]} 31. h4 {[%clk 0:01:30]}  Rd7 {[%clk 0:00:06]} 32. hxg5 {[%clk 0:01:21]}  fxg5 {[%clk 0:00:06]} 33. Nxg5 {[%clk 0:01:22]}  Nc5 {[%clk 0:00:02]} 34. b4 {[%clk 0:01:18]}  Bxd5 {[%clk 0:00:02]} 35. Nxd5 {[%clk 0:01:07]}  Qc6 {[%clk 0:00:02]} 36. bxc5 {[%clk 0:01:02]}  Rxd5 {[%clk 0:00:01]} 37. Rxd5 {[%clk 0:01:03]}  Qxd5 {[%clk 0:00:02]} 38. Rxa6 {[%clk 0:01:03]}  Rf6 {[%clk 0:00:01]} 39. Rxf6 {[%clk 0:01:02]}  Kxf6 {[%clk 0:00:02]} 40. Qxh6+ {[%clk 0:01:02]}  Kf5 {[%clk 0:00:03]} 41. Nf3 {[%clk 0:01:00]}  Qxc5 {[%clk 0:00:03]} 42. Qxh7+ {[%clk 0:00:59]}  Kf6 {[%clk 0:00:03]} 43. Qd3 {[%clk 0:00:56]}  Qc6 {[%clk 0:00:02]} 44. Qe3 {[%clk 0:00:55]}  Qd5 {[%clk 0:00:01]} 45. g4 {[%clk 0:00:55]}  e4 {[%clk 0:00:01]} 46. Qd4+ {[%clk 0:00:55]}  Ke6 {[%clk 0:00:01]} 47. Qxd5+ {[%clk 0:00:53]}  Kxd5 {[%clk 0:00:02]} 48. Nd4 {[%clk 0:00:54]}  b4 {[%clk 0:00:03]} 49. cxb4 {[%clk 0:00:55]}  Kxd4 {[%clk 0:00:03]} 50. g5 {[%clk 0:00:55]}  Ke5 {[%clk 0:00:03]} 51. b5 {[%clk 0:00:55]} 1-0


[Site "https://www.chess.com"]

[Event "Titled Tuesday Blitz July 25 Early 2023"]
[White "Svane, Rasmus"]
[Black "Fantastic_Power"]
[WhiteFideId "4657101"]
[WhiteElo "2967"]
[BlackElo "2754"]
[Result "1-0"]
[Round "9"]
[TimeControl "180+2"]
[Date "2023.07.25"]
[WhiteClock "0:02:05"]
[BlackClock "0:01:23"]
[Board "18"]

1. Nf3 {[%clk 0:03:00]}  Nf6 {[%clk 0:02:59]} 2. g3 {[%clk 0:03:01]}  d5 {[%clk 0:02:59]} 3. Bg2 {[%clk 0:03:01]}  c5 {[%clk 0:02:59]} 4. O-O {[%clk 0:03:00]}  e6 {[%clk 0:03:00]} 5. c4 {[%clk 0:03:00]}  d4 {[%clk 0:03:00]} 6. e3 {[%clk 0:02:59]}  Nc6 {[%clk 0:03:00]} 7. exd4 {[%clk 0:02:59]}  cxd4 {[%clk 0:03:01]} 8. d3 {[%clk 0:03:00]}  Bc5 {[%clk 0:03:00]} 9. Bg5 {[%clk 0:02:56]}  O-O {[%clk 0:02:57]} 10. Nbd2 {[%clk 0:02:54]}  h6 {[%clk 0:02:57]} 11. Bxf6 {[%clk 0:02:54]}  Qxf6 {[%clk 0:02:57]} 12. Ne4 {[%clk 0:02:54]}  Qe7 {[%clk 0:02:58]} 13. Nxc5 {[%clk 0:02:55]}  Qxc5 {[%clk 0:02:59]} 14. a3 {[%clk 0:02:55]}  e5 {[%clk 0:02:42]} 15. b4 {[%clk 0:02:54]}  Qd6 {[%clk 0:02:41]} 16. Re1 {[%clk 0:02:52]}  Re8 {[%clk 0:02:26]} 17. c5 {[%clk 0:02:44]}  Qc7 {[%clk 0:02:17]} 18. Nd2 {[%clk 0:02:32]}  Be6 {[%clk 0:02:10]} 19. Ne4 {[%clk 0:02:23]}  f6 {[%clk 0:01:59]} 20. Nd6 {[%clk 0:02:18]}  Red8 {[%clk 0:01:55]} 21. Qa4 {[%clk 0:02:08]}  Bd7 {[%clk 0:01:28]} 22. Qb3+ {[%clk 0:02:06]}  Kh7 {[%clk 0:01:23]} 23. Be4+ {[%clk 0:02:05]} 1-0


[Site "https://www.chess.com"]